bitfinex/quotes_ETHUSD_20241009
["timestamp","ask_amount","ask_price","bid_price","bid_amount"]
[1728481831704,0.02,2433.3,2433.0,9.11]
[1728481831935,0.02399862,2433.3,2433.0,9.11]
[1728481832209,0.02399862,2433.3,2433.1,4.10996]
[1728481832432,0.02399862,2433.3,2433.0,5.0]
[1728481832433,0.01999862,2433.3,2433.0,5.0]
[1728481832623,0.012,2433.3,2433.0,9.98905501]
[1728481832855,0.004,2433.4,2433.1,4.10996]
[1728481833017,0.01199862,2433.4,2433.1,4.10996]
[1728481833213,0.01999862,2433.4,2433.1,4.10996]
[1728481833415,0.02399862,2433.4,2433.1,4.10996]
[1728481833651,0.02399862,2433.4,2433.0,9.98905501]
[1728481834750,4.13346862,2433.4,2433.0,5.87891501]
[1728481834907,0.02399862,2433.4,2433.1,4.10996]
[1728481835112,0.02399862,2433.4,2433.0,9.98904501]
[1728481835637,0.02399862,2433.4,2433.1,4.10996]
[1728481836938,0.02399862,2433.4,2433.0,5.87891501]
[1728481837152,0.02399862,2433.4,2433.1,5.1088195]
[1728481837442,0.012,2433.4,2433.1,5.19104052]
[1728481837643,0.004,2433.4,2433.1,5.19104052]
[1728481837823,4.10939,2433.5,2433.1,5.19104052]
[1728481838025,4.12525862,2433.6,2433.1,5.19104052]
[1728481838227,4.13325862,2433.6,2433.2,4.10973]
[1728481838460,4.13322862,2433.6,2433.2,4.10971]
[1728481838984,8.24247862,2433.6,2433.2,4.10971]
[1728481839167,4.13322862,2433.6,2433.1,0.08219108]
[1728481839358,4.10931,2433.5,2433.1,0.08219108]
[1728481840047,4.13322862,2433.6,2433.1,4.19208108]
[1728481840254,8.24245862,2433.6,2433.1,4.7971772]
[1728481840466,4.13322862,2433.6,2433.1,4.7971772]
[1728481840979,4.13322862,2433.6,2433.2,4.10971]
[1728481841161,0.004,2433.3,2433.2,4.10971]
[1728481841370,0.00799862,2433.3,2433.2,4.10971]
[1728481841537,0.01999862,2433.3,2433.2,5.49217961]
[1728481841736,0.016,2433.3,2433.2,5.49217961]
[1728481841974,0.008,2433.3,2433.2,6.94996732]
[1728481842279,0.02399862,2433.6,2433.3,5.0]
[1728481842503,0.02399862,2433.6,2433.3,9.10964]
[1728481842504,0.012,2433.6,2433.3,9.10964]
[1728481842704,0.01599862,2433.6,2433.3,7.03716659]
[1728481842926,0.02399862,2433.6,2433.4,4.10945]
[1728481843206,0.01199862,2433.6,2433.3,11.14679659]
[1728481843390,0.01999862,2433.6,2433.4,4.10944]
[1728481843600,0.02399862,2433.6,2433.4,4.10944]
[1728481843794,0.02399862,2433.6,2433.4,1.66318366]
[1728481844174,0.016,2433.6,2433.4,5.77263366]
[1728481844620,0.016,2433.6,2433.5,4.1093]
[1728481844771,0.016,2433.6,2433.4,1.66318366]
[1728481844976,0.012,2433.6,2433.4,1.66318366]
[1728481845175,4.10897,2433.7,2433.4,1.66318366]
[1728481845402,0.004,2433.6,2433.4,1.66318366]
[1728481845587,0.00799862,2433.7,2433.4,1.66318366]
[1728481845789,4.11704862,2433.7,2433.4,1.66318366]
[1728481846000,4.11704862,2433.7,2433.3,9.10953]
[1728481846208,4.10928,2433.6,2433.3,5.0]
[1728481846452,4.10947,2433.4,2433.3,5.0]
[1728481846927,4.12146862,2433.4,2433.3,5.0]
[1728481847073,4.12946862,2433.4,2433.3,5.0]
[1728481847274,4.13346862,2433.4,2433.3,5.0]
[1728481848512,0.92624548,2433.4,2432.9,5.0]
[1728481848755,0.004,2433.2,2432.6,5.0]
[1728481849035,0.004,2433.2,2432.3,8.216]
[1728481849036,4.8627,2432.7,2432.3,5.0]
[1728481849252,4.11101,2432.5,2432.3,5.0]
[1728481850027,4.86266,2432.7,2432.3,5.0]
[1728481850028,4.11085,2432.6,2432.3,5.0]
[1728481850210,4.11485,2432.6,2432.3,6.399909]
[1728481850400,4.12285,2432.6,2432.3,6.399909]
[1728481850615,4.13084862,2432.6,2432.3,6.399909]
[1728481850791,4.12394367,2432.6,2432.3,6.399909]
[1728481851316,0.02399862,2432.6,2432.3,10.511139]
[1728481851611,0.02399862,2432.6,2432.4,1.4622629]
[1728481851827,0.01199862,2432.6,2432.4,1.4622629]
[1728481851986,0.004,2432.6,2432.4,1.4622629]
[1728481852197,4.86266,2432.7,2432.4,1.4622629]
[1728481852536,1.22491973,2432.6,2432.5,4.11091]
[1728481854506,1.22491973,2432.6,2432.5,4.74312492]
[1728481854875,1.22491973,2432.6,2432.5,5.52352492]
[1728481856023,1.22491973,2432.6,2432.5,8.52352492]
[1728481856223,1.22491973,2432.6,2432.5,10.5836895]
[1728481863558,1.22491973,2432.6,2432.5,9.8032895]
[1728481863714,1.22491973,2432.6,2432.5,0.55]
[1728481863940,1.22891973,2432.6,2432.3,9.11124]
[1728481864172,5.35189973,2432.6,2432.3,5.0]
[1728481864339,0.7899,2432.4,2432.3,5.0]
[1728481864522,4.11141,2432.3,2432.0,5.0]
[1728481864721,7.15205957,2432.4,2432.0,5.0]
[1728481864722,3.04089957,2432.4,2432.0,5.0]
[1728481864956,6.13000973,2432.4,2432.0,5.0]
[1728481865157,4.11143,2432.3,2432.0,5.0]
[1728481865533,4.11952,2432.2,2432.0,5.0]
[1728481865733,4.93457,2432.1,2432.0,5.0]
[1728481865962,0.8269,2432.1,2432.0,5.0]
[1728481866278,1.32274286,2432.1,2432.0,5.0]
[1728481866441,0.8229,2432.1,2432.0,5.0]
[1728481866644,0.02399862,2432.2,2432.0,5.0]
[1728481867629,4.13550862,2432.2,2432.0,5.0]
[1728481869978,4.11167,2432.1,2432.0,5.0]
[1728481870147,4.13550862,2432.2,2432.0,5.0]
[1728481870364,5.36042835,2432.2,2432.0,5.0]
[1728481871064,9.47203835,2432.2,2432.0,5.0]
[1728481871257,5.36042835,2432.2,2432.0,5.0]
[1728481871579,1.24891835,2432.2,2432.0,5.0]
[1728481872361,5.36042835,2432.2,2432.0,5.0]
[1728481872984,4.11167,2432.1,2432.0,5.0]
[1728481873190,5.36042835,2432.2,2432.0,5.0]
[1728481874359,1.24891835,2432.2,2432.0,5.0]
[1728481874975,5.36045835,2432.2,2432.0,5.0]
[1728481876494,4.11167,2432.1,2432.0,5.0]
[1728481880347,3.8607928,2432.1,2432.0,5.0]
[1728481884597,1.24891835,2432.2,2432.0,5.0]
[1728481884896,4.11167,2432.1,2432.0,5.0]
[1728481885203,5.36051835,2432.2,2432.0,5.0]
[1728481885352,5.36050835,2432.2,2432.0,5.0]
[1728481886777,4.11167,2432.1,2432.0,5.0]
[1728481887474,5.36050835,2432.2,2432.0,5.0]
[1728481887683,9.47215835,2432.2,2432.0,5.0]
[1728481887989,4.11167,2432.1,2432.0,5.0]
[1728481891170,5.33658973,2432.1,2432.0,5.0]
[1728481894192,1.22491973,2432.1,2432.0,5.0]
[1728481894760,5.33658973,2432.1,2432.0,5.0]
[1728481895199,5.33658973,2432.1,2432.0,10.65435012]
[1728481895200,1.22491973,2432.1,2432.0,10.65435012]
[1728481895434,1.22491973,2432.1,2432.0,6.8652]
[1728481896025,5.33658973,2432.1,2432.0,5.0]
[1728481896727,5.34458973,2432.1,2432.0,5.0]
[1728481896890,5.34858835,2432.1,2432.0,5.0]
[1728481897091,5.35658835,2432.1,2432.0,5.0]
[1728481897351,5.36058835,2432.1,2432.0,5.0]
[1728481898238,4.13566862,2432.1,2432.0,5.0]
[1728481901642,4.13566862,2432.1,2432.0,17.77859012]
[1728481901643,0.01999862,2432.1,2432.0,17.77859012]
[1728481901843,0.012,2432.1,2432.0,17.77859012]
[1728481902025,0.02399862,2432.8,2432.6,5.0]
[1728481902197,4.13455862,2432.8,2432.6,5.0]
[1728481903016,8.24512862,2432.8,2432.6,5.0]
[1728481903212,4.11065,2432.7,2432.6,5.0]
[1728481903427,4.13455862,2432.8,2432.6,5.0]
[1728481904308,8.24513862,2432.8,2432.6,5.0]
[1728481904501,4.13455862,2432.8,2432.6,5.0]
[1728481905166,0.02399862,2432.8,2432.6,5.0]
[1728481905362,0.02399862,2432.8,2432.6,5.5]
[1728481911485,0.02399862,2432.8,2432.6,5.0]
[1728481911678,4.13448862,2432.8,2432.6,5.0]
[1728481911971,0.02399862,2432.8,2432.6,5.0]
[1728481912324,4.13447862,2432.8,2432.6,5.0]
[1728481913561,0.02399862,2432.8,2432.6,5.0]
[1728481913847,0.02399862,2432.8,2432.7,0.911097]
[1728481914003,0.02399862,2432.8,2432.7,8.82272122]
[1728481914147,0.02399862,2432.8,2432.7,10.17992122]
[1728481914148,0.01999862,2432.8,2432.7,10.17992122]
[1728481914361,0.01199862,2432.8,2432.7,10.17992122]
[1728481914583,0.00399862,2432.8,2432.7,10.17992122]
[1728481914764,0.02399862,2433.1,2432.7,6.06927122]
[1728481914974,0.02399862,2433.1,2432.9,7.91117422]
[1728481917258,0.02399862,2433.1,2432.9,3.80097422]
[1728481917462,0.02399862,2433.1,2432.8,5.62843512]
[1728481918671,0.02399862,2433.1,2432.8,1.51800512]
[1728481919107,4.13399862,2433.1,2432.8,1.51800512]
[1728481919278,0.004,2432.9,2432.8,1.51800512]
[1728481919481,0.01199862,2432.9,2432.8,1.51800512]
[1728481919780,0.01999862,2432.9,2432.8,1.51800512]
[1728481920000,0.02399862,2432.9,2432.8,1.51800512]
[1728481920903,0.01999862,2432.9,2432.8,5.62848512]
[1728481921109,0.012,2432.9,2432.8,1.51800512]
[1728481921304,0.004,2432.9,2432.8,1.51800512]
[1728481921512,0.008,2432.9,2432.8,5.62847512]
[1728481921692,0.01999862,2432.9,2432.8,5.62847512]
[1728481922003,0.008,2432.9,2432.8,5.62847512]
[1728481922307,0.02399862,2433.1,2432.9,4.11029]
[1728481922515,0.02399862,2433.1,2432.9,1.58080363]
[1728481923520,4.13399862,2433.1,2432.8,1.51800512]
[1728481923727,0.004,2432.9,2432.7,5.46778]
[1728481923898,0.01199862,2432.9,2432.7,5.46778]
[1728481924110,0.01999862,2432.9,2432.6,5.0]
[1728481924461,4.11465,2432.7,2432.6,5.0]
[1728481924623,4.12265,2432.7,2432.6,5.0]
[1728481924814,4.13064862,2432.7,2432.6,5.0]
[1728481925125,4.13064862,2432.7,2432.3,5.0]
[1728481925126,4.111,2432.5,2432.3,5.0]
[1728481925312,4.111,2432.5,2431.9,7.91283422]
[1728481925313,0.004,2432.4,2432.0,5.0]
[1728481925615,4.11152,2432.2,2432.0,5.0]
[1728481925803,0.008,2432.1,2432.0,5.0]
[1728481926001,0.02,2432.1,2432.0,5.0]
[1728481926284,4.13566862,2432.1,2432.0,5.0]
[1728481926938,4.88896862,2432.1,2432.0,5.0]
[1728481927527,4.11244,2431.7,2431.5,0.009423]
[1728481927850,4.12450862,2431.6,2431.5,0.009423]
[1728481928040,4.13250862,2431.6,2431.5,0.009423]
[1728481928187,4.13650862,2431.6,2431.5,0.009423]
[1728481934662,4.96710862,2431.6,2431.5,0.009423]
[1728481934964,6.2551609,2431.6,2431.5,0.009423]
[1728481936058,4.96710862,2431.6,2431.5,0.009423]
[1728481941995,7.96710862,2431.6,2431.5,0.009423]
[1728481945951,4.96710862,2431.6,2431.5,0.009423]
[1728481948885,7.96710862,2431.6,2431.5,0.009423]
[1728481955225,7.13650862,2431.6,2431.5,0.009423]
[1728481955384,8.26140348,2431.6,2431.5,0.009423]
[1728481955714,9.08680348,2431.6,2431.5,0.009423]
[1728481957905,9.63680348,2431.6,2431.5,0.009423]
[1728481958322,9.63680348,2431.6,2430.3,0.7644]
[1728481958323,4.11454,2430.4,2430.3,0.7644]
[1728481958479,4.11454,2430.4,2429.9,5.0]
[1728481958480,4.11504,2430.2,2430.1,0.7665]
[1728481959027,4.11504,2430.2,2429.9,0.764]
[1728481959176,4.12704,2430.2,2429.9,0.764]
[1728481959377,0.01999862,2430.2,2429.9,0.764]
[1728481959821,0.004,2430.0,2429.9,4.87938]
[1728481960114,0.01999862,2430.0,2429.9,4.87938]
[1728481960309,0.02399862,2430.0,2429.9,4.87939]
[1728481960928,0.02399862,2430.0,2429.9,5.778899]
[1728481961276,0.01999862,2430.0,2429.9,10.778899]
[1728481961479,0.00799862,2430.0,2429.9,10.778899]
[1728481961726,0.01999862,2430.3,2430.0,4.11512]
[1728481961880,0.012,2430.3,2430.0,4.11512]
[1728481962222,0.008,2430.1,2430.0,4.11512]
[1728481962517,0.02399862,2430.1,2430.0,4.11512]
[1728481963510,0.01999862,2430.1,2430.0,4.11512]
[1728481963813,0.00399862,2430.1,2430.0,4.11512]
[1728481964015,0.004,2430.1,2430.0,5.98461932]
[1728481964227,0.008,2430.1,2430.0,11.18509049]
[1728481964404,0.004,2430.1,2430.0,11.10279354]
[1728481964599,0.004,2430.3,2430.0,6.22047354]
[1728481964804,0.01999862,2430.5,2430.0,6.22047354]
[1728481964805,0.02399862,2430.5,2430.3,4.11465]
[1728481965446,0.02399862,2430.5,2430.4,4.11454]
[1728481965747,0.02399862,2430.5,2430.4,4.90164]
[1728481967019,0.02399862,2430.5,2430.4,8.78489798]
[1728481967210,0.01999862,2430.5,2430.4,9.25261422]
[1728481967449,0.01199862,2430.5,2430.4,11.08934064]
[1728481967608,0.02399862,2430.8,2430.6,9.11405]
[1728481967808,0.02399862,2430.8,2430.7,0.8098]
[1728481968044,0.02399862,2430.8,2430.7,4.92384]
[1728481969138,0.02399862,2430.8,2430.7,2.59368642]
[1728481969557,0.02399862,2430.8,2430.7,6.70772642]
[1728481969860,0.01999862,2430.8,2430.7,6.70772642]
[1728481970021,0.01199862,2430.8,2430.7,6.70772642]
[1728481970234,0.02399862,2431.0,2430.7,2.41616077]
[1728481970565,0.02399862,2431.0,2430.9,0.7717]
[1728481970935,0.02399862,2431.0,2430.9,4.8854]
[1728481972057,0.02399862,2431.0,2430.9,0.7717]
[1728481972567,0.02399862,2431.0,2430.6,13.99988]
[1728481972719,0.02399862,2431.0,2430.7,4.11403]
[1728481972923,0.02399862,2431.0,2430.6,5.7717]
[1728481973136,0.02399862,2431.0,2430.6,9.88587]
[1728481974240,0.02399862,2431.0,2430.7,4.11397]
[1728481974934,0.02399862,2431.0,2430.7,1.399984]
[1728481975143,0.02399862,2431.0,2430.8,4.11386]
[1728481975545,0.02399862,2431.0,2430.7,5.514004]
[1728481977651,0.02399862,2431.0,2430.7,5.513974]
[1728481977868,0.02399862,2431.0,2430.8,4.11371]
[1728481979482,0.02399862,2431.0,2430.6,9.88576]
[1728481979999,4.13762862,2431.0,2430.6,9.88576]
[1728481980169,0.004,2430.8,2430.6,9.88576]
[1728481980347,0.01599862,2430.8,2430.6,5.7717]
[1728481980548,0.02399862,2430.8,2430.6,5.0]
[1728481981045,0.02399862,2430.8,2430.4,0.8314]
[1728481981390,0.008,2430.5,2430.4,4.94593]
[1728481981593,0.008,2430.5,2430.4,6.73208742]
[1728481981594,0.016,2430.5,2430.4,6.73208742]
[1728481981776,0.02399862,2430.5,2430.4,6.73208742]
[1728481982288,0.02399862,2430.5,2430.4,4.94593]
[1728481982803,0.02399862,2430.5,2430.3,5.0]
[1728481984005,1.22491973,2430.4,2430.3,5.0]
[1728481985996,1.22491973,2430.4,2430.0,9.94485]
[1728481985997,5.33945973,2430.4,2430.0,9.94485]
[1728481986203,5.33945973,2430.4,2429.8,4.11546]
[1728481986204,0.00399862,2430.1,2429.8,4.11546]
[1728481986496,1.22491973,2429.9,2429.8,4.11546]
[1728481986694,1.22491973,2429.9,2429.7,5.7662]
[1728481986695,1.23291973,2429.9,2429.7,9.8819]
[1728481986894,1.24091835,2429.9,2429.7,5.7662]
[1728481987097,1.24891835,2429.9,2429.7,5.0]
[1728481987467,1.24891835,2429.9,2429.7,9.11569]
[1728481987888,1.24891835,2429.9,2429.8,4.11556]
[1728481988474,1.24891835,2429.9,2429.7,9.11569]
[1728481988662,1.24891835,2429.9,2429.7,9.11561]
[1728481989072,1.24891835,2429.9,2429.7,5.0]
[1728481990102,6.16140835,2429.9,2429.5,4.92941]
[1728481990296,4.26407016,2432.0,2430.3,4.11459]
[1728481990497,4.11225,2431.8,2431.3,4.1129]
[1728481990698,4.11278,2431.5,2431.0,0.7555]
[1728481990995,4.11268,2431.5,2431.0,4.86889]
[1728481991335,4.11268,2431.5,2431.0,0.7555]
[1728481991620,4.11268,2431.5,2430.9,5.0]
[1728481991807,4.11268,2431.5,2430.9,9.11361]
[1728481992011,0.411268,2431.4,2430.9,5.0]
[1728481992387,4.11303,2431.3,2430.9,5.0]
[1728481992862,0.411268,2431.4,2430.9,5.0]
[1728481993002,4.524118,2431.4,2430.9,5.0]
[1728481993315,8.637068,2431.4,2430.9,5.0]
[1728481993499,4.524118,2431.4,2430.9,9.11357]
[1728481993701,0.411268,2431.4,2431.0,4.11351]
[1728481993909,0.411268,2431.4,2430.9,5.0]
[1728481994241,0.411268,2431.4,2431.0,0.38321233]
[1728481994544,4.11263,2431.6,2431.1,4.49641528]
[1728481994740,8.53170533,2431.7,2431.2,4.49636528]
[1728481994939,8.53170533,2431.7,2431.2,4.11318]
[1728481995446,4.11252,2431.6,2431.1,4.11336]
[1728481995617,4.96570753,2431.6,2431.2,0.38315047]
[1728481995800,4.11287,2431.4,2431.0,4.11351]
[1728481995999,4.11287,2431.4,2431.1,0.38317395]
[1728481996202,4.11269,2431.5,2431.0,4.11351]
[1728481996451,4.11286,2431.4,2431.1,0.38312598]
[1728481996604,5.02071675,2431.4,2430.9,5.0]
[1728481997550,5.02071675,2431.4,2431.0,4.11351]
[1728481999411,0.90785675,2431.4,2431.0,8.22702]
[1728481999765,0.7649,2431.0,2430.6,5.0]
[1728481999913,0.7649,2431.0,2430.3,5.0]
[1728482000264,4.87855,2431.0,2430.5,4.11437]
[1728482000472,4.87855,2431.0,2430.4,4.59177422]
[1728482000473,0.7649,2431.0,2430.4,4.59177422]
[1728482000679,4.11371,2430.9,2430.4,8.70630422]
[1728482001592,4.11371,2430.9,2430.4,0.7908]
[1728482001871,4.11406,2430.7,2430.4,0.7908]
[1728482002178,4.11396,2430.8,2430.3,5.0]
[1728482002179,4.11441,2430.5,2430.3,5.0]
[1728482002672,4.11428,2430.6,2430.3,5.0]
[1728482004636,4.11439,2430.5,2430.3,5.0]
[1728482005032,4.11454,2430.4,2430.3,5.0]
[1728482005752,4.11454,2430.4,2430.0,0.7615]
[1728482005753,4.11492,2430.2,2430.0,0.7615]
[1728482006447,4.11505,2430.1,2430.0,0.7615]
[1728482006835,4.11489,2430.2,2429.9,5.0]
[1728482007262,4.11507,2430.1,2429.9,5.0]
[1728482007667,4.11481,2430.3,2430.0,3.80097422]
[1728482008937,4.11467,2430.4,2430.0,3.80097422]
[1728482009295,0.190625,2525.7,2432.1,9.88815]
[1728482009296,0.8289,2432.8,2432.1,9.88815]
[1728482009453,4.11076,2432.7,2432.3,3.80097422]
[1728482009780,4.111,2432.5,2432.1,9.57757422]
[1728482010534,4.111,2432.5,2432.1,5.0]
[1728482011153,4.11086,2432.6,2432.1,5.0]
[1728482011355,4.604826,2432.6,2432.1,5.0]
[1728482012653,8.715786,2432.6,2432.1,5.0]
[1728482012858,4.604826,2432.6,2432.1,5.0]
[1728482013241,8.715796,2432.6,2432.1,5.0]
[1728482013444,4.111,2432.5,2432.1,5.0]
[1728482013777,4.604826,2432.6,2432.1,9.11165]
[1728482014274,4.604826,2432.6,2432.1,5.0]
[1728482014484,4.604826,2432.6,2432.1,9.11165]
[1728482014871,0.20353496,2432.7,2431.5,5.0]
[1728482014872,3.80097422,2432.4,2431.5,5.0]
[1728482015078,4.11232,2431.8,2431.5,5.7846]
[1728482015272,4.11235,2431.7,2431.5,5.0]
[1728482015494,4.11232,2431.8,2431.5,5.0]
[1728482015673,4.11204,2431.9,2431.5,5.0]
[1728482016008,4.11228,2431.8,2431.5,5.0]
[1728482016611,4.11235,2431.7,2431.5,5.0]
[1728482017156,4.11219,2431.8,2431.5,5.0]
[1728482017403,4.11238,2431.7,2431.5,5.0]
[1728482017561,4.11251,2431.6,2431.5,5.0]
[1728482017879,4.11236,2431.7,2431.5,5.0]
[1728482018701,4.11219,2431.8,2431.5,5.0]
[1728482018902,8.22448,2431.8,2431.5,5.0]
[1728482019265,4.31284604,2432.0,2431.5,5.0]
[1728482019464,4.11187,2432.0,2431.5,10.03217337]
[1728482019892,8.2232,2432.2,2431.6,0.08224574]
[1728482020078,8.2232,2432.2,2431.7,4.87795]
[1728482020079,4.11156,2432.2,2431.7,4.87795]
[1728482020296,4.11156,2432.2,2431.7,8.99021]
[1728482020495,4.11156,2432.2,2431.7,6.67714691]
[1728482021128,4.11123,2432.4,2431.9,4.112]
[1728482021416,4.11123,2432.4,2431.9,4.19423143]
[1728482021577,8.2225,2432.4,2431.9,4.19423143]
[1728482021775,4.11123,2432.4,2431.9,4.19423143]
[1728482022287,4.11134,2432.3,2431.9,5.78136526]
[1728482025913,4.11134,2432.3,2431.9,1.66936526]
[1728482026715,4.11162,2432.2,2431.9,1.58713383]
[1728482027024,4.11177,2432.1,2431.8,5.0]
[1728482027311,4.11191,2432.0,2431.8,5.0]
[1728482027517,8.22359,2432.1,2431.8,5.0]
[1728482027700,4.11201,2431.9,2431.8,5.0]
[1728482028011,4.11218,2431.8,2431.5,5.0]
[1728482028218,4.11201,2431.9,2431.5,5.0]
[1728482028714,8.22418,2431.9,2431.5,5.0]
[1728482028876,4.11201,2431.9,2431.5,5.0]
[1728482029227,4.11201,2431.9,2431.5,10.103224]
[1728482029404,4.11201,2431.9,2431.5,5.990574]
[1728482029574,4.11235,2431.7,2431.5,5.0]
[1728482030805,4.11251,2431.6,2431.5,5.0]
[1728482032025,4.11251,2431.6,2431.2,8.0]
[1728482032191,4.11274,2431.5,2431.2,8.0]
[1728482032628,0.796,2432.2,2431.2,8.0]
[1728482032629,4.11252,2431.6,2431.2,8.0]
[1728482032833,4.11252,2431.6,2431.3,1.705538]
[1728482033129,4.11254,2431.6,2431.2,5.0]
[1728482033491,4.11244,2431.7,2431.2,5.0]
[1728482033492,8.22492,2431.7,2431.2,9.11312]
[1728482033697,4.11244,2431.7,2431.2,9.11312]
[1728482035435,4.11253,2431.6,2431.2,9.11312]
[1728482036926,4.11242,2431.7,2431.2,9.11311]
[1728482037118,4.11252,2431.6,2431.2,10.518649]
[1728482038129,4.11236,2431.7,2431.3,4.11295]
[1728482038344,4.11236,2431.7,2431.2,10.518579]
[1728482038652,4.11236,2431.7,2431.3,1.1347479]
[1728482038937,4.1121,2431.9,2431.5,5.0]
[1728482039104,4.11219,2431.8,2431.5,5.0]
[1728482039810,4.11185,2432.0,2431.5,5.0]
[1728482040010,4.11185,2432.0,2431.6,0.8087]
[1728482040211,8.22381,2432.0,2431.6,2.212115]
[1728482040436,4.11185,2432.0,2431.6,2.212115]
[1728482041013,8.22384,2432.0,2431.6,2.212115]
[1728482041323,4.11201,2431.9,2431.6,0.8087]
[1728482041659,4.11218,2431.8,2431.6,0.8087]
[1728482041870,4.11234,2431.7,2431.6,0.8087]
[1728482042071,4.11234,2431.7,2431.5,5.0]
[1728482042637,1.23491973,2431.8,2431.5,5.0]
[1728482042833,1.23491973,2431.8,2431.6,0.7732]
[1728482046569,5.34711973,2431.8,2431.6,0.7732]
[1728482046886,4.11234,2431.7,2431.6,0.7732]
[1728482047046,5.34711973,2431.8,2431.6,0.7732]
[1728482049985,1.23491973,2431.8,2431.7,12.26106042]
[1728482050166,1.23491973,2431.8,2431.7,14.39840546]
[1728482050374,1.23491973,2431.8,2431.7,10.59448504]
[1728482053385,1.23491973,2431.8,2431.7,11.206621]
[1728482054583,1.23491973,2431.8,2431.7,11.20754394]
[1728482055086,1.23491973,2431.8,2431.7,15.01146436]
[1728482055241,0.7964,2433.4,2432.6,0.8203]
[1728482055444,0.7964,2433.4,2432.8,4.11032]
[1728482055445,4.10972,2433.3,2432.8,4.11032]
[1728482055645,4.10984,2433.2,2432.8,4.11032]
[1728482055878,4.10972,2433.3,2432.8,9.11032]
[1728482056099,4.10983,2433.2,2432.8,5.0]
[1728482056381,4.10972,2433.3,2432.8,9.19259141]
[1728482056542,4.10984,2433.2,2432.8,9.11039]
[1728482056745,4.10984,2433.2,2432.8,5.0]
[1728482056982,4.11016,2433.0,2432.8,5.0]
[1728482057183,4.11008,2433.1,2432.8,5.0]
[1728482057339,4.11019,2433.0,2432.8,5.0]
[1728482058058,8.22019,2433.1,2432.8,5.0]
[1728482058402,8.22015,2433.1,2432.8,5.0]
[1728482058552,4.11007,2433.1,2432.8,5.0]
[1728482058861,4.11015,2433.0,2432.8,5.0]
[1728482059378,4.10998,2433.1,2432.8,5.0]
[1728482059562,4.10984,2433.2,2432.8,9.11047]
[1728482059755,4.10965,2433.3,2432.9,4.11031]
[1728482061499,4.10965,2433.3,2432.8,9.11046]
[1728482061500,4.10982,2433.2,2432.8,9.11046]
[1728482062105,4.10982,2433.2,2432.8,5.0]
[1728482062409,8.22009,2433.1,2432.8,5.0]
[1728482062707,4.1102,2433.0,2432.8,5.0]
[1728482062906,8.22011,2433.1,2432.8,5.0]
[1728482063125,4.10999,2433.1,2432.8,5.0]
[1728482063409,4.11032,2432.9,2432.8,5.0]
[1728482065672,4.11032,2432.9,2432.5,5.0]
[1728482066273,4.11061,2432.8,2432.5,5.0]
[1728482067274,4.11066,2432.7,2432.5,5.0]
[1728482068081,8.22146,2432.7,2432.5,5.0]
[1728482068320,4.11066,2432.7,2432.5,5.0]
[1728482068876,8.22084,2432.9,2432.5,5.0]
[1728482069079,4.11039,2432.9,2432.5,5.0]
[1728482069308,4.11057,2432.8,2432.5,5.0]
[1728482069614,4.11039,2432.9,2432.5,9.11096]
[1728482069818,4.10989,2433.2,2432.6,4.95441259]
[1728482070331,4.10989,2433.2,2432.8,4.11048]
[1728482070477,4.10989,2433.2,2432.7,0.08220241]
[1728482070688,4.11003,2433.1,2432.7,4.19283241]
[1728482071325,4.11027,2433.0,2432.7,0.08220241]
[1728482071486,4.10991,2433.2,2432.6,0.84360499]
[1728482071686,4.11008,2433.1,2432.6,4.95436499]
[1728482071892,4.11016,2433.0,2432.6,4.95436499]
[1728482072436,4.11016,2433.0,2432.6,4.95435499]
[1728482072981,5.348201,2433.2,2432.6,4.95435499]
[1728482073214,4.10999,2433.1,2432.6,4.95425499]
[1728482073423,4.11016,2433.0,2432.6,4.95425499]
[1728482074024,4.11016,2433.0,2432.6,6.2785785]
[1728482074721,4.11016,2433.0,2432.6,10.3893285]
[1728482074933,4.89345,2433.3,2432.7,4.19284485]
[1728482075087,4.89345,2433.3,2432.8,4.11045]
[1728482075283,4.10975,2433.3,2432.8,4.11045]
[1728482075518,8.21952,2433.3,2432.8,4.11045]
[1728482075697,4.11949,2433.4,2432.7,4.11064]
[1728482076000,0.01,2433.4,2433.0,0.8167]
[1728482076286,0.01,2433.4,2433.1,4.1099]
[1728482076722,4.10965,2433.3,2433.0,0.8167]
[1728482077697,4.11954,2433.4,2433.0,4.92684]
[1728482077898,0.01,2433.4,2433.0,4.92684]
[1728482078093,0.01,2433.4,2433.1,4.10996]
[1728482078494,4.11949,2433.4,2433.0,4.92684]
[1728482078731,4.11949,2433.4,2433.0,9.03688]
[1728482078927,4.10967,2433.3,2433.0,0.8167]
[1728482079588,4.1195,2433.4,2433.0,4.92676]
[1728482079920,0.01,2433.4,2433.0,9.03682]
[1728482080094,0.01,2433.4,2433.1,4.10989]
[1728482080297,0.01,2433.4,2433.2,9.10977]
[1728482080632,8.2475,2434.0,2433.4,4.88559]
[1728482080633,0.01,2433.6,2433.4,4.88559]
[1728482081320,0.01,2433.8,2433.6,5.0]
[1728482081503,0.01,2433.8,2433.6,5.08217381]
[1728482081709,0.01,2433.8,2433.6,5.0]
[1728482082593,0.01,2433.8,2433.6,9.10913]
[1728482082824,0.01,2433.8,2433.6,5.0]
[1728482083025,0.01,2433.8,2433.6,6.399479]
[1728482084127,0.01,2433.8,2433.6,10.508599]
[1728482084315,0.01,2433.8,2433.6,6.399479]
[1728482084732,0.01,2433.8,2433.6,6.48165279]
[1728482085750,0.01,2433.8,2433.6,10.59075279]
[1728482086039,0.01,2433.8,2433.7,1.46999728]
[1728482086348,0.01,2433.9,2433.7,1.46999728]